bitfinex/quotes_SOLUSD_20240809
["timestamp","ask_amount","ask_price","bid_price","bid_amount"]
[1723216894998,20.0,153.29,153.26,6.5248]
[1723216895400,20.0,153.29,153.25,6.5251]
[1723216895695,20.0,153.29,153.24,6.5256]
[1723216895696,38.24133765,153.28,153.24,6.5256]
[1723216896107,36.61,153.28,153.25,6.5251]
[1723216896278,20.0,153.29,153.23,0.8195369]
[1723216896599,20.0,153.29,153.26,6.5245]
[1723216897988,20.0,153.29,153.25,6.5251]
[1723216898195,21.63128762,153.29,153.25,6.5251]
[1723216898498,39.1673876,153.32,153.27,6.5243]
[1723216898684,20.0,153.31,153.25,6.5249]
[1723216898887,44.76468938,153.3,153.25,6.5249]
[1723216899101,44.76468938,153.3,153.26,6.5248]
[1723216899476,43.1334,153.3,153.25,6.5252]
[1723216899686,43.1332,153.3,153.25,6.5252]
[1723216899884,36.61,153.3,153.26,6.5246]
[1723216900586,36.61,153.3,153.23,0.8195369]
[1723216900780,20.0,153.29,153.23,0.8195369]
[1723216901284,8.15539577,153.28,153.24,6.5255]
[1723216901707,1.63139577,153.28,153.24,6.5255]
[1723216901893,8.15549577,153.28,153.24,6.5255]
[1723216902303,1.63139577,153.28,153.24,6.5255]
[1723216902499,20.0,153.29,153.25,6.5251]
[1723216902680,21.63144754,153.29,153.25,6.5251]
[1723216902880,1.63146423,153.28,153.24,6.5256]
[1723216903191,8.15576423,153.28,153.23,0.8195369]
[1723216903806,8.15576423,153.28,153.23,7.3455369]
[1723216904007,26.5236,153.29,153.24,6.5256]
[1723216904508,20.0,153.29,153.25,6.5252]
[1723216904693,20.0,153.29,153.27,6.5243]
[1723216904889,20.0,153.29,153.26,6.5247]
[1723216905101,21.63122637,153.29,153.24,6.5253]
[1723216905409,28.15482637,153.29,153.24,6.5253]
[1723216905700,28.64,153.28,153.25,6.5249]
[1723216905912,28.64,153.28,153.26,6.5247]
[1723216906207,28.64,153.28,153.25,6.5252]
[1723216906407,1.63142654,153.27,153.25,6.5252]
[1723216906908,30.27142654,153.27,153.25,6.5252]
[1723216907410,28.64,153.27,153.25,6.5252]
[1723216907909,30.27143145,153.26,153.23,0.8195369]
[1723216908210,35.1657,153.24,153.23,0.8195369]
[1723216908507,36.79765599,153.24,153.23,0.8195369]
[1723216909279,6.5261,153.23,153.18,6.5282]
[1723216909511,28.64,153.21,153.18,6.5282]
[1723216909686,28.64,153.22,153.19,6.5277]
[1723216910090,28.64,153.22,153.2,6.5274]
[1723216910298,28.64,153.22,153.18,6.5278]
[1723216910705,28.64,153.2,153.14,15.2497]
[1723216910931,1.63221793,153.19,153.17,6.5286]
[1723216911218,1.63221793,153.19,153.09,1.13402717]
[1723216911219,49.08839,153.18,153.09,1.13402717]
[1723216911419,28.64,153.12,153.08,0.8195369]
[1723216911602,28.64,153.13,153.11,6.5312]
[1723216911811,28.64,153.13,153.09,6.5317]
[1723216912004,1.63306615,153.12,153.08,7.3518369]
[1723216912207,28.64,153.1,153.08,0.8195369]
[1723216912426,30.27334457,153.09,153.08,0.8195369]
[1723216912627,28.64,153.09,153.08,0.8195369]
[1723216912924,28.64,153.09,153.0,28.64]
[1723216912925,73.76549,153.09,153.0,15.2305]
[1723216913141,28.64,153.02,153.0,15.2305]
[1723216913355,28.64,153.01,152.98,6.5917]
[1723216913620,1.63418448,153.04,153.02,6.535]
[1723216913621,28.64,153.04,153.02,6.535]
[1723216913809,36.94,153.06,153.02,6.535]
[1723216914009,56.94,153.08,153.04,6.5342]
[1723216914216,36.94,153.08,153.03,6.5342]
[1723216914399,36.94,153.08,152.98,43.5317]
[1723216914400,1.63364519,153.12,153.04,6.5342]
[1723216914594,1.63364519,153.12,152.98,6.5917]
[1723216914595,36.94,153.1,153.05,6.5338]
[1723216914910,43.4717,153.1,153.04,6.5342]
[1723216915118,36.94,153.08,152.98,6.5917]
[1723216915313,1.6337924,153.07,152.98,6.5917]
[1723216915618,38.57388333,153.06,153.0,6.5355]
[1723216915926,38.57388333,153.06,152.98,6.5917]
[1723216916594,36.94,153.04,152.99,6.5362]
[1723216917018,36.94,153.02,152.98,6.5366]
[1723216917321,36.94,153.0,152.94,22.04]
[1723216917527,36.94,153.0,152.95,6.538]
[1723216917711,38.57463553,153.0,152.95,6.538]
[1723216918319,36.94,152.98,152.93,7.3584369]
[1723216918496,45.11170798,152.98,152.93,0.8195369]
[1723216918701,36.94,152.96,152.93,0.8195369]
[1723216919901,36.94,152.96,152.93,7.3584369]
[1723216920327,1.63496294,153.03,152.97,6.5371]
[1723216920628,36.94,153.03,152.93,0.8195369]
[1723216921125,45.11074926,153.09,152.98,36.94]
[1723216921338,38.57424926,153.09,152.98,36.94]
[1723216921507,38.57424926,153.09,152.99,21.8029]
[1723216921709,36.94,153.09,153.05,6.5337]
[1723216921920,1.63361439,153.08,153.05,6.5337]
[1723216922120,36.94,153.11,153.0,36.94]
[1723216922312,36.94,153.11,153.02,36.94]
[1723216922520,1.53655902,153.15,153.08,6.5324]
[1723216922521,43.4705,153.13,153.08,6.5324]
[1723216922732,45.10382252,153.13,153.07,6.5329]
[1723216923032,36.94,153.13,153.09,6.5318]
[1723216923326,1.63325356,153.16,153.03,0.12549]
[1723216923327,43.4695,153.15,153.1,6.5315]
[1723216923509,36.94,153.15,153.11,6.5311]
[1723216923909,36.94,153.15,153.1,6.5316]
[1723216924413,1.63297451,153.14,153.04,36.94]
[1723216924620,36.94,153.13,153.1,6.5312]
[1723216924931,6.78744334,153.19,153.1,36.94]
[1723216925172,1.63255825,153.18,153.08,36.94]
[1723216925310,38.57298504,153.17,153.1,6.5316]
[1723216925513,6.5291,153.16,153.1,6.5316]
[1723216925710,8.16256573,153.15,153.1,6.5316]
[1723216925928,1.6329668,153.14,153.1,6.5316]
[1723216926130,1.6329668,153.14,153.05,0.12549]
[1723216926330,8.1629668,153.14,153.08,6.5324]
[1723216926539,36.94,153.13,153.09,6.532]
[1723216926842,1.63313126,153.12,153.09,6.532]
[1723216927238,36.94,153.17,153.06,36.94]
[1723216927442,20.0,153.16,153.08,36.94]
[1723216927739,20.0,153.16,153.13,6.5303]
[1723216927935,20.0,153.16,153.12,6.5307]
[1723216928241,20.0,153.17,153.12,6.5307]
[1723216928430,20.0,153.17,153.09,0.12549]
[1723216928431,36.94,153.21,153.16,6.5291]
[1723216928632,25.46531564,153.25,153.14,36.94]
[1723216928633,36.94,153.25,153.14,36.94]
[1723216928940,43.4653,153.25,153.19,6.5277]
[1723216929239,6.5261,153.23,153.17,6.5283]
[1723216929438,38.57216907,153.25,153.17,6.5283]
[1723216929625,36.94,153.25,153.16,36.94]
[1723216929827,6.5248,153.26,153.2,6.5273]
[1723216930215,45.09671636,153.27,153.21,6.5269]
[1723216930418,6.525,153.26,153.21,6.5269]
[1723216930620,38.57191636,153.27,153.22,6.5264]
[1723216930836,38.57191636,153.27,153.17,0.12549]
[1723216930837,43.4648,153.27,153.17,0.12549]
[1723216931048,36.94,153.27,153.17,0.50196]
[1723216931348,43.4646,153.27,153.22,6.5263]
[1723216931557,1.63161381,153.26,153.17,0.37647]
[1723216931735,36.94,153.27,153.16,36.94]
[1723216932045,43.4648,153.27,153.21,6.5269]
[1723216932249,1.63189761,153.26,153.2,6.5274]
[1723216932427,8.15669761,153.26,153.21,6.5269]
[1723216932620,8.15669761,153.26,153.16,36.94]
[1723216932621,6.524,153.28,153.22,6.5264]
[1723216932821,20.0,153.27,153.24,6.5253]
[1723216933050,43.4637,153.29,153.23,6.526]
[1723216933230,6.5237,153.29,153.24,6.5256]
[1723216933435,6.5241,153.28,153.18,36.94]
[1723216933647,8.15595212,153.27,153.22,6.5265]
[1723216933946,1.63159297,153.26,153.18,0.12549]
[1723216934341,1.63159297,153.26,153.22,6.5263]
[1723216934658,1.63159297,153.26,153.18,0.25098]
[1723216934942,1.63159297,153.26,153.17,45.25098]
[1723216934943,1.63159297,153.26,153.17,0.12549]
[1723216935148,21.63159297,153.26,153.18,6.5282]
[1723216935345,20.0,153.26,153.17,1.30552122]
[1723216935652,20.0,153.26,153.23,6.5257]
[1723216935952,43.4636,153.29,153.23,6.5257]
[1723216936144,20.0,153.28,153.23,6.5257]
[1723216936350,20.0,153.28,153.2,36.94]
[1723216936660,6.5223,153.32,153.27,6.5243]
[1723216937058,6.523,153.31,153.26,6.5247]
[1723216937226,38.57123902,153.33,153.22,36.94]
[1723216937560,38.57123902,153.33,153.21,21.79428]
[1723216937561,36.94,153.29,153.21,21.5433]
[1723216937844,36.94,153.29,153.24,6.5256]
[1723216937845,43.4636,153.29,153.24,6.5256]
[1723216938035,43.4628,153.31,153.25,6.5248]
[1723216938244,20.0,153.3,153.25,6.5248]
[1723216938558,20.0,153.3,153.22,36.94]
[1723216938725,6.5223,153.32,153.22,36.94]
[1723216939047,6.5223,153.32,153.27,6.5243]
[1723216939246,8.15345723,153.32,153.27,6.5243]
[1723216939449,6.522,153.33,153.27,6.5243]
[1723216939750,1.63105021,153.32,153.24,36.94]
[1723216939949,1.63105021,153.32,153.24,6.5256]
[1723216940129,1.63105021,153.32,153.25,6.5252]
[1723216940330,6.5235,153.3,153.25,6.5252]
[1723216940547,8.15479333,153.29,153.24,6.5256]
[1723216940729,1.63119333,153.29,153.25,6.5252]
[1723216940926,38.57119333,153.29,153.23,6.5257]
[1723216941434,36.94,153.29,153.23,6.5257]
[1723216941637,43.463,153.31,153.25,6.5252]
[1723216941949,1.63135262,153.3,153.26,6.5248]
[1723216942148,1.6311713,153.29,153.25,6.5252]
[1723216942328,8.1549713,153.29,153.24,6.5256]
[1723216942534,36.94,153.31,153.22,37.06549]
[1723216942759,26.5227,153.32,153.27,6.5244]
[1723216942939,6.5227,153.32,153.27,6.5244]
[1723216943834,36.94,153.33,153.23,0.37647]
[1723216943835,1.63105802,153.31,153.23,0.37647]
[1723216944047,6.5232,153.3,153.23,0.37647]
[1723216944248,1.63119099,153.29,153.26,6.5248]
[1723216944429,1.63119099,153.29,153.23,0.37647]
[1723216944757,43.4619,153.33,153.28,6.5236]
[1723216945047,39.53721863,153.36,153.29,6.5235]
[1723216945249,39.53721863,153.36,153.23,45.37647]
[1723216945250,20.0,153.35,153.26,36.94]
[1723216945448,6.5202,153.37,153.32,6.5221]
[1723216945653,6.5206,153.36,153.31,6.5226]
[1723216946035,6.5211,153.35,153.3,6.5231]
[1723216946245,36.94,153.38,153.28,36.94]
[1723216946448,6.5189,153.4,153.35,6.5206]
[1723216946755,6.5181,153.42,153.37,6.5201]
[1723216946934,28.76430109,153.43,153.31,1.42971204]
[1723216946935,47.97809571,153.46,153.34,36.94]
[1723216947143,13.29669741,153.44,153.39,6.5192]
[1723216947326,44.2758369,153.46,153.36,36.94]
[1723216947529,0.8195369,153.46,153.37,1.55478263]
[1723216947733,7.3358369,153.46,153.41,6.5181]
[1723216947956,0.8195369,153.46,153.42,6.5179]
[1723216948636,0.8195369,153.46,153.38,37.06549]
[1723216948944,36.94,153.44,153.34,36.94]
[1723216949146,1.62972457,153.43,153.35,45.50196]
[1723216949444,6.5184,153.41,153.36,6.5205]
[1723216949634,1.63007744,153.4,153.36,6.5204]
[1723216949842,1.63004815,153.39,153.36,6.5204]
[1723216950136,1.63004815,153.39,153.32,36.94]
[1723216950338,1.63024974,153.38,153.35,6.5206]
[1723216950665,43.4573,153.44,153.39,6.5192]
[1723216950837,26.5177,153.43,153.38,6.5197]
[1723216951040,38.56987203,153.42,153.32,36.94]
[1723216951239,6.5189,153.4,153.35,6.5209]
[1723216951541,36.94,153.38,153.3,21.4233]
[1723216951731,1.63038719,153.37,153.33,6.5214]
[1723216951933,20.0,153.43,153.4,6.5188]
[1723216952140,20.0,153.43,153.34,38.24426892]
[1723216952141,44.2759369,153.46,153.41,6.5184]
[1723216952355,20.0,153.45,153.36,36.94]
[1723216952563,6.518,153.43,153.38,6.5196]
[1723216952762,6.5185,153.41,153.36,6.5205]
[1723216952944,1.63005946,153.4,153.32,36.94]
[1723216953257,1.63017793,153.39,153.3,58.3633]
[1723216953472,36.2941,153.43,153.4,6.5188]
[1723216953473,20.0,153.43,153.4,6.5188]
[1723216953760,20.0,153.44,153.36,36.94]
[1723216954265,20.0,153.44,153.4,6.5185]
[1723216954572,1.62969841,153.43,153.34,36.94]
[1723216954734,1.63008439,153.42,153.35,0.25098]
[1723216954936,1.63008439,153.42,153.34,0.12549]
[1723216955233,20.0,153.43,153.34,37.06549]
[1723216955434,20.0,153.43,153.35,45.25098]
[1723216955662,20.0,153.43,153.39,6.5193]
[1723216955957,28.14744737,153.43,153.38,6.5196]
[1723216956155,28.14744737,153.43,153.38,6.5197]
[1723216956156,26.5177,153.43,153.38,6.5197]
[1723216956462,20.0,153.43,153.36,0.12549]
[1723216956768,6.5168,153.45,153.4,6.5185]
[1723216957065,6.5176,153.43,153.39,6.5192]
[1723216957251,1.62975101,153.44,153.36,6.64599]
[1723216957431,17.1110369,153.46,153.28,44.93]
[1723216957432,1.63008663,153.43,153.28,44.93]
[1723216957635,20.0,153.45,153.31,46.55488313]
[1723216957832,26.5171,153.45,153.4,6.5188]
[1723216958043,6.5172,153.44,153.39,6.5192]
[1723216958259,28.14770724,153.43,153.38,6.5196]
[1723216958441,20.0,153.43,153.39,6.5192]
[1723216958842,20.0,153.43,153.4,6.5188]
[1723216959049,21.62961298,153.44,153.4,6.5188]
[1723216959256,6.518,153.42,153.37,6.64559]
[1723216959565,6.518,153.42,153.31,45.12549]
[1723216959566,1.62986869,153.41,153.31,45.12549]
[1723216959859,20.0,153.41,153.37,6.52]
[1723216960361,0.8195369,153.46,153.36,0.12549]
[1723216960659,7.3361369,153.46,153.41,6.5184]
[1723216960960,7.3361369,153.46,153.37,0.12549]
[1723216960961,20.0,153.45,153.37,0.12549]
[1723216961138,6.5189,153.4,153.36,6.5205]
[1723216961460,21.62964526,153.45,153.36,6.5205]
[1723216961461,6.5185,153.41,153.36,6.5205]
[1723216963542,1.63008973,153.4,153.36,6.5205]
[1723216963740,1.6300884,153.39,153.32,0.12549]
[1723216963945,6.5192,153.4,153.35,6.5207]
[1723216964142,1.63020438,153.39,153.28,44.93]
[1723216964347,21.63020438,153.39,153.34,6.5213]
[1723216964575,20.0,153.39,153.28,44.93]
[1723216964866,51.4479,153.43,153.28,46.23417047]
[1723216965164,6.5168,153.45,153.4,6.5188]
[1723216965360,26.5172,153.44,153.4,6.5188]
[1723216965538,26.5172,153.44,153.39,6.5192]
[1723216967142,6.5176,153.43,153.38,6.5197]
[1723216967341,28.14792377,153.42,153.34,0.12549]
[1723216967542,6.5177,153.43,153.34,45.50196]
[1723216967843,0.8195369,153.46,153.35,1.30384025]
[1723216968062,0.8195369,153.46,153.42,6.5178]
[1723216968454,0.8195369,153.46,153.4,6.5185]
[1723216968658,6.5173,153.44,153.4,6.0185]
[1723216968867,6.5168,153.45,153.4,6.0185]
[1723216969243,20.0,153.44,153.4,6.0185]
[1723216970971,20.0,153.44,153.41,6.5184]
[1723216971153,20.0,153.45,153.41,6.5184]
[1723216971351,20.0,153.45,153.38,15.59]
[1723216971352,0.8195369,153.46,153.43,6.5175]
[1723216971557,0.8195369,153.46,153.42,6.518]
[1723216972954,27.3359369,153.46,153.42,6.518]
[1723216973471,20.8195369,153.46,153.42,6.518]
[1723216973973,20.8195369,153.46,153.41,0.12549]
[1723216974145,0.8195369,153.46,153.45,6.5167]
[1723216974544,0.8195369,153.46,153.44,6.517]
[1723216975054,0.8195369,153.46,153.41,0.37647]
[1723216975369,0.8195369,153.46,153.41,0.25098]
[1723216975543,0.8195369,153.46,153.38,15.59]
[1723216975874,6.5173,153.44,153.39,6.5192]
[1723216976163,1.62968891,153.43,153.4,6.5188]
[1723216976374,1.62969049,153.42,153.38,15.59]
[1723216976559,1.62976043,153.41,153.38,15.59]
[1723216976739,0.8195369,153.46,153.38,15.59]
[1723216976740,1.62988656,153.45,153.38,15.59]
[1723216976940,6.5181,153.42,153.38,15.59]
[1723216977151,6.5176,153.43,153.38,15.59]
[1723216977363,8.1477587,153.42,153.38,15.59]
[1723216977559,8.1477587,153.42,153.37,12.5575]
[1723216977763,6.518,153.42,153.37,12.5578]
[1723216977966,6.5185,153.41,153.37,12.5578]
[1723216978268,38.39995925,153.4,153.34,15.4126]
[1723216978467,1.63022529,153.39,153.34,15.4126]
[1723216978971,43.2881,153.42,153.37,6.5198]
[1723216979172,20.0,153.41,153.37,6.5198]
[1723216979676,6.5169,153.45,153.35,36.77]
[1723216979850,6.5169,153.45,153.36,46.68027576]
[1723216980050,6.5169,153.45,153.4,6.5185]
[1723216980268,20.0,153.44,153.4,6.5185]
[1723216980552,26.5172,153.44,153.4,6.5185]
[1723216981060,20.0,153.44,153.4,6.5185]
[1723216981461,20.0,153.44,153.38,0.12549]
[1723216981667,0.8195369,153.46,153.39,36.77]
[1723216981850,0.8195369,153.46,153.43,6.5173]
[1723216982253,0.8195369,153.46,153.4,0.37647]
[1723216982254,0.8195369,153.46,153.44,6.5171]
[1723216982467,0.8195369,153.46,153.43,6.5175]
[1723216982683,0.8195369,153.46,153.42,6.5179]
[1723216982982,0.8195369,153.46,153.4,0.12549]
[1723216983271,0.8195369,153.46,153.39,6.5189]
[1723216983272,6.5175,153.44,153.39,6.5189]
[1723216983477,1.62975395,153.43,153.39,6.5189]
[1723216983673,1.62975243,153.42,153.4,6.5187]
[1723216983848,6.5168,153.45,153.4,6.5187]
[1723216983849,1.62975243,153.43,153.4,6.5187]
[1723216984051,8.14704313,153.44,153.4,6.5187]
[1723216984357,1.60899683,153.42,153.36,45.0]
[1723216984572,1.60899683,153.42,153.38,6.5194]
[1723216984750,58.37899683,153.42,153.36,6.5205]
[1723216985149,36.77,153.4,153.35,6.5209]
[1723216985354,8.14952168,153.39,153.34,21.9337]
[1723216985570,8.14952168,153.39,153.35,6.521]
[1723216985777,56.77,153.42,153.39,6.5192]
[1723216985960,20.0,153.45,153.42,6.518]
[1723216986782,20.0,153.45,153.44,6.5172]
[1723216986988,0.8195369,153.46,153.45,6.5167]
[1723216988268,0.8195369,153.46,153.45,6.64219]
[1723216988581,0.8195369,153.46,153.45,88.78866]
[1723216989757,43.2821,153.56,153.46,0.12549]
[1723216989972,6.5117,153.57,153.47,36.77]
[1723216990192,26.5121,153.56,153.48,0.50196]
[1723216990356,20.0,153.57,153.48,45.50196]
[1723216990554,36.77,153.58,153.48,45.50196]
[1723216990776,43.2816,153.58,153.48,45.50196]
[1723216991078,1.62843985,153.6,153.5,15.97659]
[1723216991079,36.77,153.6,153.5,15.97659]
[1723216991260,6.5104,153.6,153.52,0.12549]
[1723216991458,6.5104,153.6,153.52,0.25098]
[1723216991663,7.3295369,153.61,153.53,0.12549]
[1723216991866,7.3295369,153.61,153.54,0.12549]
[1723216991867,0.8195369,153.61,153.54,0.12549]
[1723216992173,0.8195369,153.61,153.56,0.12549]
[1723216992357,0.8195369,153.61,153.56,45.50196]
[1723216992557,0.8195369,153.61,153.56,45.25098]
[1723216992861,38.39795315,153.6,153.53,0.25098]
[1723216993071,38.39795315,153.6,153.53,0.12549]
[1723216993367,38.39795315,153.6,153.49,6.5496]
[1723216993368,36.77,153.56,153.49,6.5496]
[1723216993579,1.62850521,153.55,153.49,6.5496]
[1723216993756,36.77,153.56,153.49,6.5496]
[1723216993757,1.62857378,153.54,153.49,6.5496]
[1723216994555,36.77,153.56,153.49,6.5496]
[1723216994784,1.62847675,153.55,153.49,6.5496]
[1723216995579,36.77,153.56,153.49,6.5496]
[1723216995758,36.77,153.58,153.49,6.5496]
[1723216996080,21.62821924,153.57,153.5,0.12549]
[1723216996284,21.62821924,153.57,153.5,45.50196]
[1723216996285,20.0,153.57,153.5,45.50196]
[1723216996486,20.0,153.59,153.51,36.77]
[1723216996673,20.0,153.59,153.52,45.50196]
[1723216996884,0.8195369,153.61,153.52,45.50196]
[1723216997184,0.8195369,153.61,153.54,0.12549]
[1723216997361,0.8195369,153.61,153.54,45.50196]
[1723216998085,0.8195369,153.61,153.55,15.7256]
[1723216998263,0.8195369,153.61,153.56,0.50196]
[1723216998460,0.8195369,153.61,153.56,46.80404724]
[1723216998667,0.8195369,153.61,153.57,6.6183]
[1723216998870,0.8195369,153.61,153.59,0.12549]
[1723216999191,0.8195369,153.61,153.59,1.42740953]
[1723216999479,0.8195369,153.61,153.6,0.25098]
[1723216999680,0.8195369,153.61,153.6,0.50196]
[1723217000062,0.8195369,153.61,153.6,45.50196]
[1723217001372,0.8195369,153.61,153.6,0.50196]
[1723217002394,0.8195369,153.61,153.6,45.50196]
[1723217003487,69.67638115,153.84,153.61,0.12549]
[1723217003488,43.2765,153.7,153.61,0.12549]
[1723217003785,6.5057,153.71,153.61,38.32250313]
[1723217004002,36.77,153.72,153.63,0.12549]
[1723217004164,36.77,153.74,153.65,0.12549]
[1723217004364,6.9936369,153.76,153.68,0.12549]
[1723217004365,37.5895369,153.76,153.68,0.12549]
[1723217004594,37.5895369,153.76,153.68,45.50196]
[1723217005293,37.5895369,153.76,153.69,45.0]
[1723217005477,37.5895369,153.76,153.7,0.50196]
[1723217005478,0.8195369,153.76,153.7,0.50196]
[1723217005661,0.8195369,153.76,153.71,0.12549]
[1723217005860,0.8195369,153.76,153.71,0.25098]
[1723217006065,0.8195369,153.76,153.72,0.12549]
[1723217006267,0.8195369,153.76,153.68,0.12549]
[1723217006268,43.2746,153.74,153.68,0.12549]
[1723217006495,8.13175167,153.73,153.68,0.37647]
[1723217006901,43.2753,153.72,153.61,36.77]
[1723217007072,1.62674673,153.71,153.61,36.77]
[1723217007275,38.39674708,153.7,153.62,6.2955]
[1723217007581,36.77,153.7,153.62,6.2955]
[1723217007990,38.39683829,153.7,153.62,6.2955]
[1723217008575,43.2773,153.68,153.62,6.2955]
[1723217008774,36.77,153.66,153.59,15.5335]
[1723217008971,1.62730129,153.65,153.59,15.5335]
[1723217009192,1.6274231,153.64,153.59,15.5335]
[1723217009498,36.77,153.66,153.59,15.5335]
[1723217009797,6.5058,153.71,153.61,36.77]
[1723217009973,2.52853152,153.73,153.61,36.77]
[1723217009974,6.77639825,153.72,153.61,36.77]
[1723217010167,63.2757,153.71,153.61,36.77]
[1723217010370,56.77,153.71,153.62,0.12549]
[1723217010572,6.5048,153.74,153.62,1.42692497]
[1723217010776,43.275,153.73,153.63,0.12549]
[1723217010978,6.5053,153.72,153.64,0.12549]
[1723217011174,44.90166901,153.73,153.64,0.37647]
[1723217011373,0.8195369,153.76,153.68,0.12549]
[1723217011800,0.8195369,153.76,153.68,61.02827]
[1723217011997,0.8195369,153.76,153.69,36.89549]
[1723217012202,0.8195369,153.76,153.7,0.25098]
[1723217012499,2.44575893,153.76,153.71,0.12549]
[1723217012794,2.4456902,153.76,153.71,0.12549]
[1723217013113,0.8195369,153.76,153.72,0.12549]
[1723217013268,0.8195369,153.76,153.72,0.37647]
[1723217013475,0.8195369,153.76,153.7,0.12549]
[1723217013893,0.8195369,153.76,153.69,0.50196]
[1723217015081,1.6262073,153.75,153.68,15.6518]
[1723217015284,6.5047,153.74,153.68,15.6518]
[1723217015490,1.62657854,153.73,153.68,15.6518]
[1723217015979,6.504,153.75,153.68,15.6518]
[1723217016210,0.8195369,153.76,153.68,15.6518]
[1723217016211,6.5049,153.73,153.68,15.6518]
[1723217016383,8.13216707,153.72,153.62,21.665]
[1723217016579,51.2441,153.75,153.63,1.3013678]
[1723217016890,0.8195369,153.76,153.63,46.0413678]
[1723217017607,0.8195369,153.76,153.64,45.12549]
[1723217017784,0.8195369,153.76,153.65,0.12549]
[1723217017982,0.8195369,153.76,153.65,0.37647]
[1723217018182,8.94944816,153.76,153.66,0.12549]
[1723217018383,6.504,153.75,153.67,0.12549]
[1723217018600,6.504,153.75,153.67,0.37647]
[1723217018798,8.94966579,153.76,153.68,0.12549]
[1723217019101,2.44596049,153.76,153.67,0.37647]
[1723217019278,0.8195369,153.76,153.67,0.37647]
[1723217019477,0.8195369,153.76,153.67,1.67740421]
[1723217019679,0.8195369,153.76,153.67,0.37647]
[1723217020179,8.949311,153.76,153.67,0.37647]
[1723217020385,6.5048,153.74,153.67,0.37647]
[1723217020592,1.62658283,153.73,153.67,0.37647]
[1723217021478,1.62658283,153.73,153.67,0.25098]
[1723217021479,6.5056,153.72,153.67,0.25098]
[1723217021698,1.62676818,153.71,153.63,0.12549]
[1723217021893,6.5045,153.74,153.66,0.12549]
[1723217022287,44.74,153.75,153.66,0.12549]
[1723217022488,26.5045,153.74,153.66,0.12549]
[1723217022804,8.13171061,153.73,153.66,0.12549]
[1723217023001,1.62661061,153.73,153.62,21.665]
[1723217023395,6.5061,153.7,153.62,21.665]
[1723217023709,1.62695779,153.69,153.62,21.665]
[1723217024587,1.62708661,153.68,153.62,21.665]
[1723217025807,6.5087,153.64,153.58,6.3985]
[1723217026015,1.62770575,153.63,153.58,6.3985]
[1723217026785,20.0,153.65,153.58,6.3985]
[1723217027014,6.5065,153.7,153.59,0.12549]
[1723217027190,20.0,153.69,153.6,1.30186364]
[1723217027520,20.0,153.69,153.61,0.25098]
[1723217027722,20.0,153.69,153.62,0.12549]
[1723217027913,26.5066,153.69,153.62,0.12549]
[1723217028215,6.5079,153.66,153.59,45.12549]
[1723217028395,1.62747545,153.65,153.58,6.52399]
[1723217028719,1.62747473,153.64,153.58,6.52399]
[1723217029412,8.13617473,153.64,153.58,6.3985]
[1723217029593,1.62766798,153.63,153.58,6.3985]
[1723217030200,6.5082,153.66,153.58,6.3985]
[1723217030425,28.13594316,153.65,153.58,6.3985]
[1723217030600,6.5088,153.64,153.58,6.3985]
[1723217030812,1.62773686,153.63,153.58,6.3985]
[1723217030994,6.5101,153.61,153.58,6.3985]
[1723217031317,6.5101,153.61,153.49,44.74]
[1723217031318,1.6278971,153.6,153.54,6.1815]
[1723217031928,20.0,153.61,153.54,6.1815]
[1723217032411,21.62777926,153.63,153.54,6.1815]
[1723217032611,28.13697926,153.63,153.54,6.1815]
[1723217032795,28.13697926,153.63,153.55,45.50196]
[1723217033000,20.0,153.63,153.55,45.50196]